bitfinex-derivatives/quotes_BTCF0:USTF0_20250119
["timestamp","ask_amount","ask_price","bid_price","bid_amount"]
[1737308751243,0.19939156,104690.0,104680.0,0.047819]
[1737308751445,0.58005577,104700.0,104680.0,0.48128022]
[1737308751645,0.53224177,104700.0,104690.0,0.4431759]
[1737308751945,0.53224177,104700.0,104690.0,0.45693199]
[1737308752245,0.48443077,104700.0,104690.0,0.52919389]
[1737308752648,0.047803,104720.0,104710.0,0.047805]
[1737308752855,0.047803,104720.0,104710.0,0.45094002]
[1737308753452,0.047803,104720.0,104710.0,0.45093966]
[1737308754252,0.19024899,104720.0,104710.0,0.62269257]
[1737308754448,0.22481089,104720.0,104710.0,0.57488757]
[1737308754651,0.19024899,104720.0,104710.0,0.57488757]
[1737308754952,0.22481089,104720.0,104710.0,0.54032567]
[1737308755254,0.22481089,104720.0,104710.0,0.53554243]
[1737308755458,0.29851089,104720.0,104710.0,0.20930433]
[1737308755849,0.41230854,104720.0,104710.0,0.03755142]
[1737308756353,0.37774664,104720.0,104710.0,0.03755142]
[1737308756548,0.34194664,104720.0,104710.0,0.08535642]
[1737308756755,0.30404664,104720.0,104710.0,0.08535642]
[1737308756954,0.30404664,104720.0,104710.0,0.12285642]
[1737308757156,0.30404664,104720.0,104710.0,0.48365642]
[1737308757750,0.30404664,104720.0,104710.0,0.48843962]
[1737308757952,0.30404664,104720.0,104710.0,0.52423962]
[1737308758152,0.30404664,104720.0,104710.0,0.53389074]
[1737308758347,0.16160065,104720.0,104710.0,0.53389074]
[1737308759643,0.047803,104720.0,104710.0,0.53389074]
[1737308760060,0.047803,104720.0,104710.0,0.52910754]
[1737308760951,0.047803,104720.0,104710.0,0.52611802]
[1737308761858,0.047803,104720.0,104710.0,0.52910741]
[1737308762452,0.047803,104720.0,104710.0,0.52611802]
[1737308762759,0.047803,104720.0,104710.0,0.52910741]
[1737308763359,0.047803,104720.0,104710.0,0.16531802]
[1737308764161,0.047803,104720.0,104710.0,0.16830744]
[1737308764357,0.047803,104720.0,104710.0,0.16531802]
[1737308765959,0.047803,104720.0,104710.0,0.1556669]
[1737308766260,0.047803,104720.0,104710.0,0.1198669]
[1737308766955,0.047805,104710.0,104700.0,0.12958497]
[1737308767157,0.047803,104720.0,104710.0,0.047805]
[1737308767357,0.047803,104720.0,104710.0,0.4431669]
[1737308767557,0.047803,104720.0,104710.0,0.4813669]
[1737308768455,0.047803,104720.0,104710.0,0.5180669]
[1737308769762,0.047803,104720.0,104710.0,0.5526288]
[1737308770165,0.047803,104720.0,104710.0,0.5180669]
[1737308776466,0.047803,104720.0,104710.0,0.52105621]
[1737308776662,0.047803,104720.0,104710.0,0.5210562]
[1737308776967,0.21820495,104720.0,104710.0,0.5180669]
[1737308777165,0.21820495,104720.0,104710.0,0.52105622]
[1737308780065,0.21820495,104720.0,104710.0,0.55561812]
[1737308780265,0.17040195,104720.0,104710.0,0.55561812]
[1737308780468,0.17040195,104720.0,104710.0,0.56040095]
[1737308780972,0.19858803,104720.0,104710.0,0.56040095]
[1737308781963,0.24638903,104720.0,104710.0,0.52583905]
[1737308782270,0.24638903,104720.0,104710.0,0.52105622]
[1737308783775,0.24638903,104720.0,104710.0,0.52105618]
[1737308784271,0.24638903,104720.0,104710.0,0.5180669]
[1737308784573,0.24638903,104720.0,104710.0,0.52105621]
[1737308784770,0.24638903,104720.0,104710.0,0.52105619]
[1737308785173,0.36203344,104720.0,104710.0,0.92176894]
[1737308785473,0.36203344,104720.0,104710.0,0.91877965]
[1737308786069,0.36203344,104720.0,104710.0,0.95334155]
[1737308786270,0.36203344,104720.0,104710.0,0.95633082]
[1737308786863,0.36203344,104720.0,104710.0,0.95633081]
[1737308788166,0.19063393,104720.0,104710.0,0.95633081]
[1737308788563,0.19063393,104720.0,104710.0,0.88720701]
[1737308788771,0.19063393,104720.0,104710.0,0.92176891]
[1737308789072,0.19063393,104720.0,104710.0,0.95633081]
[1737308789269,0.46719591,104730.0,104720.0,0.047801]
[1737308789270,0.42929591,104730.0,104720.0,0.047801]
[1737308789461,0.42929591,104730.0,104720.0,0.5130248]
[1737308789664,0.42929591,104730.0,104720.0,0.51601379]
[1737308790070,0.42929591,104730.0,104720.0,0.5130248]
[1737308790271,0.42929591,104730.0,104720.0,0.52079604]
[1737308790465,0.48354731,104740.0,104720.0,0.55535794]
[1737308790780,0.17143711,104740.0,104730.0,0.5486198]
[1737308791075,0.17143711,104740.0,104730.0,0.55639104]
[1737308792567,0.16198854,104750.0,104730.0,1.18573538]
[1737308792767,0.16198854,104750.0,104740.0,0.5130158]
[1737308792969,0.16198854,104750.0,104740.0,0.52078704]
[1737308793875,0.16198854,104750.0,104740.0,0.74974639]
[1737308795074,0.047788,104750.0,104740.0,0.92134697]
[1737308795271,0.047788,104750.0,104740.0,0.91656466]
[1737308795878,0.047788,104750.0,104740.0,0.92134609]
[1737308796577,0.047788,104750.0,104740.0,0.69238674]
[1737308796778,0.19000054,104760.0,104750.0,0.047787]
[1737308796969,0.11420054,104760.0,104750.0,0.51619973]
[1737308797474,0.11420054,104760.0,104750.0,0.5132108]
[1737308797880,0.11420054,104760.0,104750.0,0.68481138]
[1737308798177,0.16198254,104760.0,104750.0,0.65024948]
[1737308799180,0.047782,104760.0,104750.0,0.4786489]
[1737308799378,0.047782,104760.0,104750.0,0.1178489]
[1737308801269,0.082582,104760.0,104750.0,0.1178489]
[1737308802285,0.082582,104760.0,104750.0,0.4786489]
[1737308804384,0.082582,104760.0,104750.0,0.48163718]
[1737308806079,0.082582,104760.0,104750.0,0.48163719]
[1737308806878,0.082582,104760.0,104750.0,0.4786489]
[1737308807378,0.047782,104760.0,104750.0,0.5132108]
[1737308807584,0.047782,104760.0,104750.0,0.51619907]
[1737308807979,0.047782,104760.0,104750.0,0.51619899]
[1737308809987,0.047782,104760.0,104750.0,0.51619896]
[1737308810186,0.1152752,104770.0,104760.0,0.047782]
[1737308810392,0.04777,104790.0,104770.0,0.047778]
[1737308810591,0.04777,104790.0,104780.0,0.408573]
[1737308811089,0.57283179,104800.0,104780.0,0.4776968]
[1737308811277,0.62059779,104800.0,104790.0,0.0823309]
[1737308811682,0.25979779,104800.0,104790.0,0.4431309]
[1737308812289,0.17673179,104800.0,104790.0,0.4431309]
[1737308812785,0.17673179,104800.0,104790.0,0.0823309]
[1737308812985,0.17673179,104800.0,104790.0,0.4431309]
[1737308815393,0.34744573,104800.0,104790.0,0.4776928]
[1737308815783,0.30964573,104800.0,104790.0,0.4776928]
[1737308815983,0.30964573,104800.0,104790.0,0.5137928]
[1737308816179,0.27214573,104800.0,104790.0,0.5137928]
[1737308816689,0.27214573,104800.0,104790.0,0.51677971]
[1737308817286,0.27214573,104800.0,104790.0,0.59600705]
[1737308817497,0.52066519,104820.0,104810.0,0.0823219]
[1737308818495,0.32207716,104820.0,104810.0,0.0823219]
[1737308818892,0.32207716,104820.0,104810.0,0.10027609]
[1737308820686,0.047757,104820.0,104810.0,0.46107609]
[1737308820889,0.047757,104820.0,104810.0,0.49557609]
[1737308822888,0.047757,104820.0,104810.0,0.50499095]
[1737308833700,0.18976627,104820.0,104810.0,0.50499095]
[1737308835195,0.18976627,104820.0,104810.0,0.50797759]
[1737308835395,0.18976627,104820.0,104810.0,0.50499095]
[1737308835598,0.18976627,104820.0,104810.0,0.5079776]
[1737308837590,0.047757,104820.0,104810.0,0.5079776]
[1737308837795,0.047757,104820.0,104810.0,0.50797759]
[1737308838303,0.047757,104820.0,104810.0,0.50797758]
[1737308840296,0.047757,104820.0,104810.0,0.67957816]
[1737308840908,0.047757,104820.0,104810.0,0.66152372]
[1737308841499,0.047757,104820.0,104810.0,0.69598537]
[1737308841908,0.047757,104820.0,104810.0,0.69598536]
[1737308842707,0.05719102,104820.0,104810.0,0.69598536]
[1737308843099,0.05719102,104820.0,104810.0,0.92494471]
[1737308843508,0.05719102,104820.0,104810.0,0.89048306]
[1737308843702,0.05719102,104820.0,104810.0,0.88749644]
[1737308843904,0.05719102,104820.0,104810.0,0.89048309]
[1737308844301,0.05719102,104820.0,104810.0,0.92494474]
[1737308845505,0.047757,104820.0,104810.0,0.92494474]
[1737308845901,0.047757,104820.0,104810.0,0.75334416]
[1737308846097,0.047757,104820.0,104810.0,0.71888251]
[1737308846511,0.047757,104820.0,104810.0,0.71888249]
[1737308847211,0.18976627,104820.0,104810.0,0.48992314]
[1737308849012,0.18976627,104820.0,104810.0,0.52438479]
[1737308849910,0.18976627,104820.0,104810.0,0.81107639]
[1737308850114,0.18976627,104820.0,104810.0,1.15485801]
[1737308850702,0.18976627,104820.0,104810.0,1.38411731]
[1737308850904,0.20882076,104830.0,104820.0,0.047755]
[1737308850905,0.17072076,104830.0,104820.0,0.047755]
[1737308851109,0.17072076,104830.0,104820.0,0.55052658]
[1737308851704,0.19858803,104840.0,104820.0,0.55052658]
[1737308851899,0.19858803,104840.0,104830.0,0.5116743]
[1737308852111,0.19858803,104840.0,104830.0,0.51466093]
[1737308852712,0.19858803,104840.0,104830.0,0.54896093]
[1737308854310,0.229399,104850.0,104840.0,0.047746]
[1737308854501,0.229399,104850.0,104840.0,0.51491645]
[1737308854706,0.25624054,104860.0,104850.0,0.047741]
[1737308855012,0.25624054,104860.0,104850.0,0.51688815]
[1737308855714,0.25624054,104860.0,104850.0,0.5513498]
[1737308855910,0.25624054,104860.0,104850.0,0.55134924]
[1737308856105,0.25624054,104860.0,104850.0,0.5483643]
[1737308856918,0.25624054,104860.0,104850.0,0.5843703]
[1737308857611,0.25624054,104860.0,104850.0,0.53190565]
[1737308859615,0.25624054,104860.0,104850.0,0.54140566]
[1737308861314,0.047733,104870.0,104850.0,0.71232788]
[1737308861508,0.047733,104870.0,104860.0,0.46100165]
[1737308863111,0.047733,104870.0,104860.0,0.047737]
[1737308865018,0.047733,104870.0,104850.0,0.05723901]
[1737308865019,0.047737,104860.0,104850.0,0.05723901]
[1737308865227,0.081637,104860.0,104850.0,0.41803901]
[1737308865411,0.114737,104860.0,104850.0,0.41803901]
[1737308865720,0.114737,104860.0,104850.0,0.47050366]
[1737308866121,0.408533,104870.0,104850.0,0.52296831]
[1737308866325,0.408533,104870.0,104860.0,0.10020165]
[1737308866621,0.047733,104870.0,104860.0,0.46100165]
[1737308866922,0.15046086,104880.0,104870.0,0.047732]
[1737308867225,0.15046086,104880.0,104870.0,0.10019665]
[1737308867722,0.15046086,104880.0,104870.0,0.047732]
[1737308867914,0.20292551,104880.0,104870.0,0.047732]
[1737308868119,0.11736086,104880.0,104870.0,0.46099665]
[1737308870221,0.11736086,104880.0,104870.0,0.047732]
[1737308872924,0.16982551,104880.0,104870.0,0.047732]
[1737308874030,0.11736086,104880.0,104870.0,0.047732]
[1737308875225,0.23083071,104880.0,104870.0,0.047732]
[1737308876730,0.11736086,104880.0,104870.0,0.047732]
[1737308877225,0.12712207,104880.0,104870.0,0.047732]
[1737308877622,0.2976765,104880.0,104870.0,0.047732]
[1737308880223,0.32568229,104880.0,104870.0,0.047732]
[1737308881024,0.31592108,104880.0,104870.0,0.46099665]
[1737308881729,0.44226423,104880.0,104870.0,0.46099665]
[1737308883031,0.31592108,104880.0,104870.0,0.46099665]
[1737308883234,0.31592108,104880.0,104870.0,0.46398157]
[1737308883926,0.31592108,104880.0,104870.0,0.10318157]
[1737308884536,0.31592108,104880.0,104870.0,0.05071692]
[1737308885136,0.31592108,104880.0,104870.0,0.05071699]
[1737308886623,0.31592108,104880.0,104870.0,0.36378499]
[1737308886827,0.31592108,104880.0,104870.0,0.00298499]
[1737308887031,0.26819108,104880.0,104860.0,0.63192287]
[1737308887338,0.047732,104870.0,104860.0,0.63490791]
[1737308888534,0.21912706,104870.0,104860.0,0.46398569]
[1737308889635,0.36196786,104870.0,104860.0,1.11175209]
[1737308889938,0.30484544,104870.0,104860.0,1.11175209]
[1737308891034,0.30484544,104870.0,104860.0,1.34078491]
[1737308893647,1.11516885,104900.0,104880.0,0.047723]
[1737308893940,1.11440885,104900.0,104890.0,0.46098765]
[1737308894135,1.11440885,104900.0,104890.0,0.52647191]
[1737308894335,1.11440885,104900.0,104890.0,0.52348765]
[1737308895135,0.1,104900.0,104890.0,1.40028684]
[1737308895445,0.047715,104910.0,104900.0,0.047717]
[1737308895639,0.047715,104910.0,104900.0,0.46396591]
[1737308896336,0.047715,104910.0,104900.0,0.46874031]
[1737308896638,0.78628903,104930.0,104900.0,0.42102331]
[1737308896851,0.04771,104920.0,104910.0,0.408513]
[1737308897034,0.04771,104920.0,104910.0,0.41627092]
[1737308898139,0.04771,104920.0,104910.0,0.86901749]
[1737308899338,0.04771,104920.0,104910.0,0.86424352]
[1737308899738,0.04771,104920.0,104910.0,0.86901731]
[1737308900036,0.047706,104930.0,104920.0,0.047709]
[1737308900240,0.047706,104930.0,104920.0,0.10017365]
[1737308901438,0.047706,104930.0,104920.0,0.05246465]
[1737308901642,0.047706,104930.0,104910.0,0.87084198]
[1737308901845,0.095414,104930.0,104910.0,0.87382558]
[1737308902044,0.10016965,104930.0,104910.0,0.64479279]
[1737308902246,0.10016965,104930.0,104910.0,0.64180919]
[1737308902451,0.04771,104920.0,104910.0,0.64180919]
[1737308904949,0.04771,104920.0,104910.0,0.47056006]
[1737308911057,0.04771,104920.0,104910.0,0.53306006]
[1737308915051,0.04771,104920.0,104910.0,0.52347765]
[1737308915257,0.04771,104920.0,104910.0,0.471013]
[1737308916046,0.04771,104920.0,104910.0,0.52347765]
[1737308916250,0.05747511,104920.0,104910.0,0.52347765]
[1737308916455,0.05747511,104920.0,104910.0,0.471013]
[1737308917260,0.08907511,104920.0,104910.0,0.471013]
[1737308918260,0.08907511,104920.0,104910.0,0.52347765]
[1737308921354,0.08907511,104920.0,104910.0,0.52646139]
[1737308921558,0.07931,104920.0,104910.0,0.52646139]
[1737308922058,0.24995025,104920.0,104910.0,0.52646139]
[1737308923260,0.24995025,104920.0,104910.0,0.53123537]
[1737308924061,0.24995025,104920.0,104910.0,0.53123535]
[1737308924253,0.07931,104920.0,104910.0,0.53123535]
[1737308924453,0.07931,104920.0,104910.0,0.17043535]
[1737308924653,0.07931,104920.0,104910.0,0.16566138]
[1737308925560,0.19680084,104920.0,104910.0,0.16566138]
[1737308926960,0.22238613,104920.0,104910.0,0.82590833]
[1737308927963,0.22238613,104920.0,104910.0,0.8255718]
[1737308928258,0.74083882,104930.0,104910.0,0.87803645]
[1737308928465,0.36702854,104970.0,104930.0,0.047705]
[1737308928766,0.25624054,104970.0,104960.0,0.51154568]
[1737308928961,0.25624054,104970.0,104960.0,0.48017785]
[1737308929165,0.30392754,104970.0,104960.0,0.47942629]
[1737308929355,0.30392754,104970.0,104960.0,0.44507473]
[1737308929556,0.30392754,104970.0,104960.0,0.31389847]
[1737308929557,0.047687,104970.0,104960.0,0.31389847]
[1737308929963,0.047687,104970.0,104960.0,0.34824855]
[1737308930164,0.047687,104970.0,104960.0,0.70904855]
[1737308930567,0.047687,104970.0,104960.0,1.1451948]
[1737308930762,0.047687,104970.0,104960.0,1.12885626]
[1737308930958,0.047687,104970.0,104960.0,1.0717202]
[1737308931661,0.46084858,104980.0,104960.0,1.0717202]
[1737308932063,0.047687,104970.0,104960.0,1.0717202]
[1737308932462,0.047687,104970.0,104960.0,1.06873795]
[1737308932865,0.047687,104970.0,104960.0,1.12110253]
[1737308933174,0.047687,104980.0,104970.0,0.047686]
[1737308933757,0.10005158,104980.0,104970.0,0.047686]
[1737308938868,0.10005158,104980.0,104970.0,0.408486]
[1737308939869,0.10005158,104980.0,104970.0,0.3608]
[1737308940163,0.047691,104970.0,104960.0,0.047691]
[1737308942358,0.047691,104970.0,104960.0,0.408491]
[1737308943570,0.10005558,104970.0,104960.0,0.408491]
[1737308943762,0.10005558,104970.0,104960.0,0.41147332]
[1737308944071,0.10005558,104970.0,104960.0,0.408491]
[1737308945261,0.10005558,104970.0,104950.0,0.3608]
[1737308945565,0.10006058,104960.0,104950.0,0.047695]
[1737308945764,0.047696,104960.0,104950.0,0.047695]
[1737308950769,0.047696,104960.0,104950.0,0.44572821]
[1737308953281,0.047696,104960.0,104950.0,0.27514255]
[1737308953776,0.047696,104960.0,104950.0,0.63594255]
[1737308954377,0.047696,104960.0,104950.0,0.27514255]
[1737308955082,0.047696,104960.0,104950.0,0.63594255]
[1737308955581,0.047696,104960.0,104950.0,0.63892509]
[1737308956485,0.047696,104960.0,104950.0,1.10705029]
[1737308957582,0.047696,104960.0,104950.0,1.11182228]
[1737308957984,0.047696,104960.0,104950.0,0.5872161]
[1737308958988,0.08207316,104960.0,104950.0,0.41624953]
[1737308959289,0.08207316,104960.0,104950.0,0.93089658]
[1737308959483,0.08207316,104960.0,104950.0,0.92612454]
[1737308960387,0.08207316,104960.0,104950.0,1.33554984]
[1737308960793,0.047696,104960.0,104950.0,1.33554984]
[1737308961087,0.05732092,104970.0,104960.0,0.047691]
[1737308961291,0.04769,104970.0,104960.0,0.05067352]
[1737308962487,0.04769,104970.0,104960.0,0.27862894]
[1737308962793,0.04769,104970.0,104960.0,0.27564642]
[1737308963488,0.04769,104970.0,104960.0,0.63644642]
[1737308963688,0.04769,104970.0,104960.0,0.63942884]
[1737308964087,0.04769,104970.0,104960.0,0.59173784]
[1737308964894,0.04769,104970.0,104960.0,0.23093784]
[1737308965083,0.08389,104970.0,104960.0,0.23093784]
[1737308965596,0.08389,104970.0,104960.0,0.69926035]
[1737308966790,0.047685,104980.0,104960.0,1.11244719]
[1737308967087,0.047685,104980.0,104970.0,0.3608]
[1737308967286,0.047685,104980.0,104970.0,0.36378242]
[1737308967488,0.047685,104980.0,104970.0,0.05066942]
[1737308967687,0.047685,104980.0,104970.0,0.41146942]
[1737308968087,0.047685,104980.0,104970.0,1.45177728]
[1737308968489,0.047685,104980.0,104970.0,1.50416412]
[1737308968796,0.047685,104980.0,104970.0,1.45177728]
[1737308968997,0.047685,104980.0,104970.0,1.16508568]
[1737308969595,0.047685,104980.0,104970.0,1.16985679]
[1737308970295,0.047685,104980.0,104970.0,0.80905679]
[1737308970597,0.047685,104980.0,104970.0,1.12216979]
[1737308970798,0.047685,104980.0,104970.0,1.06355933]
[1737308971298,0.047685,104980.0,104970.0,1.11124633]
[1737308971800,0.047685,104980.0,104970.0,0.58746223]
[1737308972591,0.047685,104980.0,104970.0,0.41624053]
[1737308972987,0.047685,104980.0,104970.0,0.36855353]
[1737308973400,0.047685,104980.0,104970.0,0.36855328]
[1737308974494,0.047685,104980.0,104970.0,0.36378203]
[1737308974798,0.047685,104980.0,104970.0,0.36855328]
[1737308976394,0.10007184,104980.0,104970.0,0.00298203]
[1737308976599,0.13547184,104980.0,104970.0,0.00298203]
[1737308977100,0.3608,104990.0,104970.0,0.36378203]
[1737308977400,0.3608,104990.0,104980.0,0.41318684]
[1737308977401,0.04768,104990.0,104980.0,0.41318684]
[1737308977602,0.04768,104990.0,104980.0,0.3608]
[1737308977796,0.04768,104990.0,104980.0,0.36378175]
[1737308978196,0.04768,104990.0,104980.0,0.46385059]
[1737308979403,0.04768,104990.0,104980.0,0.41146375]
[1737308979803,0.04768,104990.0,104980.0,0.408482]
[1737308980007,0.04768,104990.0,104980.0,0.92219707]
[1737308980206,0.04768,104990.0,104980.0,1.32785487]
[1737308981302,0.04768,104990.0,104980.0,0.6367776]
[1737308981505,0.1,105000.0,104980.0,0.5890956]
[1737308981696,0.147675,105000.0,104990.0,0.3608]
[1737308981902,0.147675,105000.0,104980.0,0.68916244]
[1737308982102,0.147675,105000.0,104980.0,0.6921441]
[1737308982303,0.183775,105000.0,104990.0,0.2282956]
[1737308982506,0.220075,105000.0,104990.0,0.2282956]
[1737308984607,0.220075,105000.0,104990.0,0.40221569]
[1737308984816,0.63326184,105000.0,104990.0,0.39923404]
[1737308985918,0.63326184,105000.0,104980.0,0.44691404]
[1737308986120,0.047678,104990.0,104980.0,0.44989591]
[1737308987815,0.408478,104990.0,104980.0,0.44989591]
[1737308988015,0.46086484,104990.0,104980.0,0.40221591]
[1737308988515,0.442278,104990.0,104980.0,0.40221591]
[1737308988921,0.081478,104990.0,104980.0,0.40221591]
[1737308990410,0.081478,104990.0,104980.0,0.40221599]
[1737308991615,0.1,105000.0,104980.0,0.64446439]
[1737308991816,0.1,105000.0,104990.0,0.46086484]
[1737308992016,0.1,105000.0,104990.0,0.53611783]
[1737308992216,0.1,105000.0,104990.0,0.53611599]
[1737308992613,0.1,105000.0,104990.0,0.76441159]
[1737308993918,0.1,105000.0,104990.0,1.57009752]
[1737308994311,0.04767,105010.0,105000.0,0.047673]
[1737308994511,0.04767,105010.0,105000.0,0.46384097]
[1737308996524,0.04767,105010.0,105000.0,0.46384098]
[1737308996727,0.48567853,105030.0,105020.0,0.047664]
[1737308996917,0.47616114,105030.0,105020.0,0.46085084]
[1737308997124,0.47616114,105030.0,105020.0,0.46383168]
[1737308998327,0.47616114,105030.0,105020.0,0.46383141]
[1737308998525,0.24890292,105030.0,105020.0,0.46383141]
[1737308998825,0.19981302,105040.0,105030.0,0.04766]
[1737308999030,0.19981302,105040.0,105030.0,0.55448254]
[1737308999218,0.19981302,105040.0,105030.0,0.5020957]
[1737308999620,0.17097563,105040.0,105030.0,0.5020957]
[1737309000316,0.21863063,105040.0,105030.0,0.49732688]
[1737309000725,0.047655,105040.0,105030.0,0.49434684]
[1737309001121,0.408455,105040.0,105030.0,0.04766]
[1737309001527,0.047655,105040.0,105030.0,0.04766]
[1737309002126,0.047655,105040.0,105030.0,0.40846]
[1737309004333,0.047655,105040.0,105030.0,0.46084684]
[1737309005130,0.047655,105040.0,105030.0,0.40846]
[1737309005929,0.047655,105040.0,105030.0,0.46084684]
[1737309006237,0.081952,105050.0,105040.0,0.047655]
[1737309006431,0.081952,105050.0,105040.0,0.46084184]
[1737309006836,0.081952,105050.0,105040.0,0.46062993]
[1737309008431,0.49513884,105050.0,105040.0,0.04744309]
[1737309009333,0.49513884,105050.0,105030.0,0.17085636]
[1737309009543,0.49513884,105050.0,105030.0,0.21851336]
[1737309009544,0.083855,105040.0,105030.0,0.21851336]
[1737309010040,0.083855,105040.0,105030.0,0.2214938]
[1737309010243,0.083855,105040.0,105030.0,0.10302415]
[1737309011141,0.0343,105050.0,105040.0,0.047655]
[1737309011348,0.444647,105060.0,105050.0,0.047651]
[1737309011647,0.479447,105060.0,105050.0,0.10003784]
[1737309012346,0.479447,105060.0,105050.0,0.10301788]
[1737309012844,0.479447,105060.0,105050.0,0.05063104]
[1737309013733,0.479447,105060.0,105050.0,0.047651]
[1737309013932,0.479447,105060.0,105050.0,0.05063106]
[1737309014537,0.479447,105060.0,105050.0,0.047651]
[1737309015241,0.479447,105060.0,105050.0,0.10003784]
[1737309015441,0.479447,105060.0,105050.0,0.047651]
[1737309016444,0.047642,105070.0,105060.0,0.047646]
[1737309016639,0.118242,105070.0,105060.0,0.047646]
[1737309017338,0.047646,105060.0,105050.0,0.047651]
[1737309018141,0.047646,105060.0,105050.0,0.21850736]
[1737309019351,0.047646,105060.0,105050.0,0.22148713]
[1737309019652,0.047646,105060.0,105050.0,0.22148714]
[1737309019850,0.047646,105060.0,105050.0,0.22148715]
[1737309021349,0.047646,105060.0,105050.0,0.2262548]
[1737309021541,0.047646,105060.0,105050.0,0.45406328]
[1737309022153,0.047646,105060.0,105050.0,0.44929563]
[1737309022554,0.047646,105060.0,105050.0,0.45406342]
[1737309022752,0.047646,105060.0,105050.0,0.28320706]
[1737309023746,0.10003284,105060.0,105050.0,0.23555606]
[1737309023952,0.46083284,105060.0,105050.0,0.23555606]
[1737309024353,0.10003284,105060.0,105050.0,0.23555677]
[1737309024549,0.49753284,105060.0,105050.0,0.23555677]
[1737309024753,0.13673284,105060.0,105050.0,0.23555677]
[1737309025251,0.13673284,105060.0,105050.0,0.17825747]
[1737309025654,0.49753284,105060.0,105050.0,0.17825747]
[1737309025961,0.49753284,105060.0,105050.0,0.17050918]
[1737309026148,0.49753284,105060.0,105050.0,0.17348931]
[1737309026350,0.13673284,105060.0,105050.0,0.17348931]
[1737309026551,0.49753284,105060.0,105050.0,0.17825724]
[1737309027050,0.13673284,105060.0,105050.0,0.17825724]
[1737309027257,0.49753284,105060.0,105050.0,0.17825724]
[1737309027856,0.49753284,105060.0,105050.0,0.40606572]
[1737309028243,0.49753284,105060.0,105050.0,0.40606586]
[1737309029244,0.49753284,105060.0,105050.0,0.40129774]
[1737309029950,0.49753284,105060.0,105050.0,0.39831766]
[1737309030148,0.50523974,105060.0,105050.0,0.39831766]
[1737309030356,0.67621537,105060.0,105050.0,0.17050918]
[1737309031958,0.26302853,105060.0,105050.0,0.17050918]
[1737309032751,0.0920529,105060.0,105040.0,0.047654]
[1737309032950,0.0920529,105060.0,105040.0,0.05063413]
[1737309033359,0.047651,105050.0,105040.0,0.05063413]
[1737309033858,0.21901809,105050.0,105040.0,0.05063413]
[1737309034958,0.21901809,105050.0,105040.0,0.05063412]
[1737309036457,0.21901809,105050.0,105040.0,0.047654]
[1737309036756,0.21901809,105050.0,105040.0,0.05063413]
[1737309037860,0.21901809,105050.0,105040.0,0.05540231]
[1737309038459,0.21901809,105050.0,105040.0,0.05540221]
[1737309039665,0.21901809,105050.0,105040.0,0.46858905]
[1737309039854,0.21901809,105050.0,105040.0,0.50778905]
[1737309040056,0.047651,105050.0,105040.0,0.7415576]
[1737309040350,0.047651,105050.0,105040.0,0.72784932]
[1737309040558,0.40788011,105060.0,105040.0,0.72784932]
[1737309040559,0.40788011,105060.0,105040.0,0.69390314]
[1737309040763,0.37118011,105060.0,105050.0,0.46083784]
[1737309041063,0.37118011,105060.0,105050.0,0.55124566]
[1737309041270,0.37118011,105060.0,105050.0,0.55145461]
[1737309041465,0.17136709,105070.0,105060.0,0.047646]
[1737309041653,0.19981302,105090.0,105060.0,1.0868935]
[1737309041960,0.19981302,105090.0,105080.0,0.77398684]
[1737309042267,0.14031302,105090.0,105080.0,0.82162384]
[1737309042461,0.14031302,105090.0,105080.0,0.87212549]
[1737309042963,0.14031302,105090.0,105080.0,0.88424617]
[1737309043169,0.1,105100.0,105080.0,1.61862586]
[1737309043356,0.1,105100.0,105090.0,0.51320568]
[1737309043664,0.1,105100.0,105090.0,0.48643299]
[1737309044055,0.1,105100.0,105090.0,0.53881983]
[1737309044251,0.1,105100.0,105090.0,0.76546495]
[1737309044456,0.1,105100.0,105090.0,0.77142097]
[1737309044751,0.147628,105100.0,105090.0,0.70712103]
[1737309044961,0.147628,105100.0,105090.0,0.70235579]
[1737309045361,0.147628,105100.0,105090.0,0.28477325]
[1737309046066,0.147628,105100.0,105090.0,0.28477351]
[1737309046456,0.147628,105100.0,105090.0,0.28179498]
[1737309046658,0.147628,105100.0,105090.0,0.6455735]
[1737309046858,0.48504671,105120.0,105090.0,0.6455735]
[1737309047058,0.48504671,105120.0,105100.0,0.05238684]
[1737309047059,0.047627,105110.0,105100.0,0.05238684]
[1737309049064,0.04072771,105120.0,105100.0,0.41318684]
[1737309049269,0.04072771,105120.0,105110.0,0.10000984]
[1737309049768,0.04072771,105120.0,105110.0,0.13740984]
[1737309050471,0.18263306,105120.0,105110.0,0.13740984]
[1737309051367,0.23025206,105120.0,105110.0,0.10000984]
[1737309052355,0.23025206,105120.0,105110.0,0.10775176]
[1737309053470,0.23025206,105120.0,105110.0,0.10000984]
[1737309054870,0.08834671,105120.0,105110.0,0.10000984]
[1737309056273,0.12754671,105120.0,105110.0,0.10000984]
[1737309060173,0.12754671,105120.0,105110.0,0.10298804]
[1737309061067,0.44072771,105120.0,105100.0,0.05526727]
[1737309061268,0.047623,105110.0,105100.0,0.1106324]
[1737309062367,0.047623,105110.0,105100.0,0.01061868]
[1737309062567,0.047623,105110.0,105080.0,0.7573077]
[1737309062568,0.46080984,105110.0,105080.0,0.7573077]
[1737309062879,0.047632,105090.0,105080.0,0.8049447]
[1737309063778,0.041,105090.0,105080.0,0.91732425]
[1737309063978,0.041,105090.0,105080.0,0.52081655]
[1737309064179,0.047627,105110.0,105090.0,0.04763]
[1737309064477,0.088627,105110.0,105100.0,0.05238684]
[1737309065680,0.128427,105110.0,105100.0,0.05238684]
[1737309066483,0.128427,105110.0,105090.0,0.10001684]
[1737309066671,0.176054,105110.0,105090.0,0.10478257]
[1737309066866,0.128427,105110.0,105090.0,0.10478257]
[1737309067072,0.128427,105110.0,105090.0,0.10478258]
[1737309067273,0.176054,105110.0,105090.0,0.10478258]
[1737309067477,0.128427,105110.0,105090.0,0.10478258]
[1737309067879,0.00770065,105120.0,105110.0,0.047623]
[1737309068182,0.60671053,105160.0,105140.0,0.047606]
[1737309068383,0.55910853,105160.0,105150.0,0.09999184]
[1737309068978,0.19830853,105160.0,105150.0,0.46079184]
[1737309069477,0.085997,105170.0,105150.0,0.46555508]
[1737309069975,0.047601,105160.0,105150.0,0.46555508]
[1737309070989,0.047601,105160.0,105150.0,0.50126278]
[1737309071283,0.46078784,105160.0,105150.0,0.40127094]
[1737309071585,0.408401,105160.0,105150.0,0.3965077]
[1737309073072,0.46078784,105160.0,105150.0,0.3336077]
[1737309073473,0.46078784,105160.0,105150.0,0.10696258]
[1737309074474,0.46078784,105160.0,105150.0,0.04704004]
[1737309074786,0.047605,105150.0,105140.0,0.22664512]